fUSD/lending_fUSD_20250929
["ID","MTS","AMOUNT","RATE_DAILY","PERIOD"]
[388398753,1759155051320,-1000.0,0.00019021,2]
[388398755,1759155051331,-1000.0,0.00019021,2]
[388398757,1759155051341,-1000.0,0.00019021,2]
[388398759,1759155051352,-1000.0,0.00019021,2]
[388398761,1759155051363,-1000.0,0.00019021,2]
[388398764,1759155051374,-1000.0,0.00019021,2]
[388398766,1759155051385,-1000.0,0.00019021,2]
[388398768,1759155051396,-1000.0,0.00019021,2]
[388398770,1759155051407,-1000.0,0.00019021,2]
[388398771,1759155051419,-1000.0,0.00019021,2]
[388398772,1759155051430,-1117.14979099,0.00019021,2]
[388398773,1759155051441,-1000.0,0.00019021,2]
[388398774,1759155051451,-1000.0,0.00019021,2]
[388398775,1759155051462,-1000.0,0.00019021,2]
[388398776,1759155051472,-1000.0,0.00019021,2]
[388398777,1759155051483,-1000.0,0.00019021,2]
[388398778,1759155051493,-1000.0,0.00019021,2]
[388398779,1759155051504,-151.0,0.00019021,2]
[388398780,1759155051514,-10012.454343,0.00019021,2]
[388398781,1759155051525,-10012.454343,0.00019021,2]
[388398782,1759155051535,-1560.0,0.00019021,2]
[388398783,1759155051546,-10012.454343,0.00019021,2]
[388398784,1759155051559,-1560.0,0.00019021,2]
[388398785,1759155051570,-10012.454343,0.00019021,2]
[388398786,1759155051582,-1560.0,0.00019021,2]
[388398787,1759155051594,-151.0,0.00019021,2]
[388398788,1759155051605,-1560.0,0.00019021,2]
[388398789,1759155051617,-151.0,0.00019021,2]
[388398790,1759155051627,-151.0,0.00019021,2]
[388398791,1759155051639,-227.781019,0.00019021,2]
[388398792,1759155051652,-151.0,0.00019021,2]
[388398793,1759155051665,-281.989746,0.00019021,2]
[388398794,1759155051675,-281.989746,0.00019021,2]
[388398795,1759155051686,-281.989746,0.00019021,2]
[388398796,1759155051698,-281.989746,0.00019021,2]
[388398797,1759155051710,-151.0,0.00019021,2]
[388398798,1759155051721,-446.470289,0.00019021,2]
[388398799,1759155051735,-446.470289,0.00019021,2]
[388398800,1759155051746,-446.470289,0.00019021,2]
[388398801,1759155051757,-168.0,0.00019036,2]
[388398802,1759155051768,-206.14225661,0.00019042,2]
[388398803,1759155051779,-168.0,0.00019047,2]
[388398804,1759155051790,-374.05198109,0.00019068,2]
[388398805,1759155051800,-834.6162797,0.00019068,2]
[388398806,1759155051811,-239.20126299,0.00019068,2]
[388398807,1759155051822,-1500.0,0.00019068,2]
[388398808,1759155051832,-1500.0,0.00019068,2]
[388398809,1759155051843,-500.0,0.0001907,2]
[388398810,1759155051853,-1000.0,0.0001907,2]
[388398811,1759155051864,-152.0,0.00019088,3]
[388398812,1759155051874,-690.65,0.00019123,2]
[388398813,1759155051884,-165.35,0.00019129,2]
[388398814,1759155051896,-172.78344828,0.00019137,10]
[388398815,1759155052292,-374.05198109,0.00019151,2]
[388398816,1759155052303,-834.6162797,0.00019151,2]
[388398817,1759155052315,-168.0,0.00019154,2]
[388398818,1759155052326,-2500.0,0.00019164,2]
[388398819,1759155052336,-500.0,0.0001917,2]
[388398820,1759155052346,-1000.0,0.0001917,2]
[388398821,1759155052356,-300.0,0.00019172,2]
[388398822,1759155052366,-151.0,0.00019173,2]
[388398823,1759155052376,-151.0,0.00019173,2]
[388398824,1759155052386,-151.0,0.00019173,2]
[388398825,1759155052396,-151.0,0.00019173,2]
[388398826,1759155052406,-151.0,0.00019173,2]
[388398827,1759155052416,-151.0,0.00019173,2]
[388398828,1759155052427,-151.0,0.00019173,2]
[388398829,1759155052436,-151.0,0.00019173,2]
[388398830,1759155052446,-151.0,0.00019173,2]
[388398831,1759155052456,-631.846708,0.00019173,2]
[388398832,1759155052467,-631.846708,0.00019173,2]
[388398833,1759155052478,-631.846708,0.00019173,2]
[388398834,1759155052489,-631.846708,0.00019173,2]
[388398835,1759155052499,-151.0,0.00019173,2]
[388398836,1759155052510,-216.62685,0.00019173,2]
[388398837,1759155052520,-216.62685,0.00019173,2]
[388398838,1759155052530,-216.62685,0.00019173,2]
[388398839,1759155052540,-216.62685,0.00019173,2]
[388398840,1759155052550,-151.0,0.00019173,2]
[388398841,1759155052562,-167.551559,0.00019173,2]
[388398843,1759155052572,-167.551559,0.00019173,2]
[388398844,1759155052582,-167.551559,0.00019173,2]
[388398845,1759155052592,-167.551559,0.00019173,2]
[388398847,1759155052602,-1302.67765,0.00019173,2]
[388398848,1759155052613,-1302.67765,0.00019173,2]
[388398849,1759155052622,-1302.67765,0.00019173,2]
[388398850,1759155052632,-1302.67765,0.00019173,2]
[388398851,1759155052642,-151.0,0.00019173,2]
[388398852,1759155052652,-151.0,0.00019173,2]
[388398853,1759155052665,-151.0,0.00019173,2]
[388398854,1759155052676,-163.421808,0.00019173,2]
[388398855,1759155052686,-1000.0,0.00019178,2]
[388398856,1759155052697,-500.0,0.00019178,2]
[388398857,1759155052707,-151.0,0.00019178,2]
[388398858,1759155052717,-4261.26,0.00019178,2]
[388398859,1759155052727,-500.0,0.00019178,2]
[388398860,1759155052737,-500.0,0.00019178,2]
[388398861,1759155052747,-500.0,0.00019178,2]
[388398862,1759155052757,-500.0,0.00019178,2]
[388398863,1759155052768,-500.0,0.00019178,2]
[388398864,1759155052778,-500.0,0.00019178,2]
[388398865,1759155052787,-500.0,0.00019178,2]
[388398866,1759155052798,-500.0,0.00019178,2]
[388398867,1759155052810,-150.0,0.00019178,2]
[388398868,1759155052820,-165.35,0.00019189,2]
[388398869,1759155052831,-500.0,0.00019191,2]
[388398870,1759155052842,-500.0,0.00019192,2]
[388398871,1759155052852,-374.05198109,0.00019233,2]
[388398872,1759155052862,-834.6162797,0.00019233,2]
[388398873,1759155052872,-150.18584876,0.00019241,5]
[388398874,1759155052882,-165.34089838,0.00019248,2]
[388398875,1759155052892,-300.0,0.00019249,2]
[388398876,1759155052901,-164.854692,0.00019249,2]
[388398877,1759155052912,-164.854692,0.00019249,2]
[388398878,1759155052922,-164.854692,0.00019249,2]
[388398879,1759155052932,-164.854692,0.00019249,2]
[388398880,1759155052941,-12611.2778808,0.0001925,2]
[388398881,1759155052950,-2975.7234778,0.0001925,2]
[388398882,1759155052960,-23827.5430509,0.0001925,2]
[388398883,1759155052970,-488.0,0.00019286,2]
[388398884,1759155052980,-2450.0,0.00019286,2]
[388398885,1759155052990,-674.0,0.00019286,2]
[388398886,1759155052999,-500.0,0.00019286,2]
[388398887,1759155053009,-2540.0,0.00019286,2]
[388398888,1759155053020,-500.0,0.00019286,2]
[388398889,1759155053030,-659.0,0.00019286,2]
[388398890,1759155053040,-168.0,0.0001929,2]
[388398891,1759155053050,-1273.4687897,0.00019307,2]
[388398892,1759155053061,-787.6742388,0.00019309,2]
[388398893,1759155053070,-374.05198109,0.00019315,2]
[388398894,1759155053079,-834.6162797,0.00019315,2]
[388398895,1759155053089,-503.38696321,0.00019336,2]
[388398896,1759155053099,-300.0,0.00019338,2]
[388398897,1759155053109,-374.05198109,0.0001937,2]
[388398898,1759155053120,-834.6162797,0.0001937,2]
[388398899,1759155053130,-500.0,0.0001937,2]
[388398900,1759155053140,-1000.0,0.0001937,2]
[388398901,1759155053150,-226.55520493,0.000194,2]
[388398902,1759155053160,-164.85,0.00019426,2]
[388398903,1759155053171,-500.0,0.00019452,2]
[388398904,1759155053181,-374.05198109,0.00019452,2]
[388398905,1759155053191,-834.6162797,0.00019452,2]
[388398906,1759155053203,-700.0,0.00019458,2]
[388398907,1759155053213,-500.0,0.00019465,2]
[388398908,1759155053224,-500.0,0.00019465,2]
[388398909,1759155053235,-168.0,0.00019483,2]
[388398910,1759155053246,-2000.0,0.000195,2]
[388398911,1759155053256,-87460.15873287,0.000195,2]
[388398912,1759155053266,-151.0,0.000195,2]
[388398913,1759155053277,-151.0,0.000195,2]
[388398914,1759155053287,-151.0,0.000195,2]
[388398915,1759155053297,-151.0,0.000195,2]
[388398916,1759155053308,-168.0,0.00019511,2]
[388398917,1759155053318,-1425.0,0.00019526,2]
[388398918,1759155053329,-334.58,0.00019534,2]
[388398919,1759155053339,-337.49,0.00019534,2]
[388398920,1759155053350,-1196.09,0.00019534,2]
[388398921,1759155053360,-350.22,0.00019534,2]
[388398922,1759155053371,-1196.09,0.00019534,2]
[388398923,1759155053382,-1192.79,0.00019534,2]
[388398924,1759155053392,-488.0,0.0001956,2]
[388398925,1759155053402,-2450.0,0.0001956,2]
[388398926,1759155053414,-674.0,0.0001956,2]
[388398927,1759155053424,-500.0,0.0001956,2]
[388398928,1759155053435,-2540.0,0.0001956,2]
[388398929,1759155053444,-500.0,0.0001956,2]
[388398930,1759155053455,-500.0,0.0001956,2]
[388398931,1759155053465,-659.0,0.0001956,2]
[388398932,1759155053474,-151.0,0.00019568,2]
[388398933,1759155053484,-151.0,0.00019568,2]
[388398934,1759155053494,-1500.0,0.00019568,2]
[388398935,1759155053504,-700.17735972,0.00019568,2]
[388398936,1759155053514,-1500.0,0.00019568,2]
[388398937,1759155053524,-1500.0,0.00019568,2]
[388398938,1759155053534,-1500.0,0.00019568,2]
[388398939,1759155053544,-1500.0,0.00019568,2]
[388398940,1759155053554,-1500.0,0.00019568,2]
[388398941,1759155053566,-1500.0,0.00019568,2]
[388398942,1759155053577,-1500.0,0.00019568,2]
[388398943,1759155053587,-1500.0,0.00019568,2]
[388398944,1759155053597,-1267.46084216,0.00019568,2]
[388398945,1759155053607,-1500.0,0.00019568,2]
[388398946,1759155053618,-1184.78697126,0.00019568,2]
[388398947,1759155053629,-1500.0,0.00019568,2]
[388398948,1759155053640,-1500.0,0.00019568,2]
[388398949,1759155053653,-1500.0,0.00019568,2]
[388398950,1759155053663,-1500.0,0.00019568,2]
[388398951,1759155053676,-1500.0,0.00019568,2]
[388398952,1759155053687,-1141.41501134,0.00019568,2]
[388398953,1759155053700,-1500.0,0.00019568,2]
[388398954,1759155053711,-1500.0,0.00019568,2]
[388398955,1759155053722,-1500.0,0.00019568,2]
[388398956,1759155053734,-1500.0,0.00019568,2]
[388398957,1759155053745,-1500.0,0.00019568,2]
[388398958,1759155053756,-1500.0,0.00019568,2]
[388398959,1759155053767,-1500.0,0.00019568,2]
[388398960,1759155053779,-942.47240937,0.00019568,2]
[388398961,1759155053792,-1500.0,0.00019568,2]
[388398962,1759155053805,-1500.0,0.00019568,2]
[388398963,1759155053818,-150.0,0.00019593,2]
[388398964,1759155053830,-2000.0,0.00019616,2]
[388398965,1759155053841,-2000.0,0.00019616,2]
[388398966,1759155053853,-168.0,0.00019618,2]
[388398967,1759155053864,-150.0,0.00019633,2]
[388398968,1759155053876,-435.95842512,0.00019642,2]
[388398969,1759155053888,-2121.21776034,0.00019642,2]
[388398970,1759155053900,-1092.477015,0.00019645,2]
[388398971,1759155053911,-1563.20253684,0.00019647,2]
[388398972,1759155053923,-51424.33147412,0.00019651,2]
[388398973,1759155053934,-1092.477015,0.00019653,2]
[388398974,1759155053944,-165.43133031,0.00019655,2]
[388398975,1759155053956,-2121.21776034,0.00019657,2]
[388398976,1759155053967,-216.255113,0.00019658,2]
[388398977,1759155053978,-216.255113,0.00019658,2]
[388398978,1759155053988,-216.255113,0.00019658,2]
[388398979,1759155053998,-216.255117,0.00019658,2]
[388398980,1759155054009,-841.75307955,0.00019662,2]
[388398981,1759155054019,-51424.33147412,0.00019664,2]
[388398982,1759155054030,-1092.477015,0.00019667,2]
[388398983,1759155054041,-841.75307955,0.00019667,2]
[388398984,1759155054051,-2689.86348258,0.00019669,2]
[388398985,1759155054062,-841.75307955,0.00019673,2]
[388398986,1759155054073,-2689.86348258,0.00019674,2]
[388398987,1759155054083,-1563.20253684,0.00019675,2]
[388398988,1759155054094,-1092.477015,0.00019678,2]
[388398989,1759155054104,-1172.40190264,0.00019678,2]
[388398990,1759155054115,-435.95842512,0.00019678,2]
[388398991,1759155054126,-1172.40190264,0.0001968,2]
[388398992,1759155054137,-2121.21776034,0.00019681,2]
[388398993,1759155054147,-435.95842512,0.00019682,2]
[388398994,1759155054158,-1969.51167801,0.00019686,2]
[388398995,1759155054169,-165.43133031,0.00019688,2]
[388398996,1759155054179,-8310.58050242,0.00019692,2]
[388398997,1759155054190,-8310.58050242,0.00019693,2]
[388398998,1759155054200,-51424.33147412,0.00019694,2]
[388398999,1759155054211,-1563.20253684,0.00019694,2]
[388399000,1759155054221,-150.0,0.00019696,2]
[388399001,1759155054231,-2121.21776034,0.00019706,2]
[388399002,1759155054242,-165.43133031,0.00019707,2]
[388399003,1759155054252,-1969.51167801,0.00019708,2]
[388399004,1759155054263,-1563.20253684,0.00019711,2]
[388399005,1759155054273,-2689.86348258,0.00019712,2]
[388399006,1759155054285,-3000.0,0.00019712,2]
[388399007,1759155054296,-2121.21776034,0.00019713,2]
[388399008,1759155054306,-172.78344828,0.00019715,12]
[388399009,1759155054317,-435.95842512,0.00019722,2]
[388399010,1759155054328,-2121.21776034,0.00019724,2]
[388399011,1759155054339,-1092.477015,0.00019726,2]
[388399012,1759155054350,-500.0,0.00019726,2]
[388399013,1759155054361,-250.0,0.00019726,2]
[388399014,1759155054372,-156.587,0.00019726,2]
[388399015,1759155054382,-8310.58050242,0.00019728,2]
[388399016,1759155054393,-841.75307955,0.00019731,2]
[388399017,1759155054403,-841.75307955,0.00019733,2]
[388399018,1759155054414,-168.0,0.00019735,2]
[388399019,1759155054424,-1563.20253684,0.00019735,2]
[388399020,1759155054434,-500.0,0.00019739,2]
[388399021,1759155054444,-10000.0,0.00019739,6]
[388399022,1759155054454,-500.0,0.00019739,2]
[388399023,1759155054466,-8310.58050242,0.00019745,2]
[388399024,1759155054476,-165.43133031,0.00019748,2]
[388399025,1759155054486,-1172.40190264,0.00019748,2]
[388399026,1759155054497,-1172.40190264,0.00019749,2]
[388399027,1759155054512,-165.43133031,0.00019749,2]
[388399028,1759155054531,-2813.9564532,0.00019752,2]
[388399029,1759155054551,-663.9736561,0.00019752,2]
[388399030,1759155054572,-5316.6434969,0.00019752,2]
[388399031,1759155054594,-51424.33147412,0.00019753,2]
[388399032,1759155054616,-2121.21776034,0.00019754,2]
[388399033,1759155054638,-165.43133031,0.00019754,2]
[388399034,1759155054659,-1969.51167801,0.00019755,2]
[388399035,1759155054681,-2689.86348258,0.00019755,2]
[388399036,1759155054695,-435.95842512,0.00019757,2]
[388399037,1759155054706,-8310.58050242,0.00019758,2]
[388399038,1759155054716,-1969.51167801,0.00019759,2]
[388399039,1759155054727,-51424.33147412,0.0001976,2]
[388399040,1759155054738,-1563.20253684,0.00019761,2]
[388399041,1759155054749,-841.75307955,0.00019764,2]
[388399042,1759155054759,-841.75307955,0.00019767,2]
[388399043,1759155054770,-1563.20253684,0.00019768,2]
[388399044,1759155054781,-8310.58050242,0.0001977,2]
[388399045,1759155054791,-1172.40190264,0.0001977,2]
[388399046,1759155054801,-2689.86348258,0.00019772,2]
[388399047,1759155054811,-1172.40190264,0.00019773,2]
[388399048,1759155054822,-435.95842512,0.00019775,2]
[388399049,1759155054833,-1172.40190264,0.00019778,2]
[388399050,1759155054843,-51424.33147412,0.00019784,2]
[388399051,1759155054853,-2689.86348258,0.00019784,2]
[388399052,1759155054864,-51424.33147412,0.00019784,2]
[388399053,1759155054874,-435.95842512,0.0001979,2]
[388399054,1759155054885,-165.43133031,0.0001979,2]
[388399055,1759155054895,-1092.477015,0.0001979,2]
[388399056,1759155054906,-1969.51167801,0.00019791,2]
[388399057,1759155054916,-2689.86348258,0.00019795,2]
[388399058,1759155054926,-8310.58050242,0.00019796,2]
[388399059,1759155054937,-1092.477015,0.00019797,2]
[388399060,1759155054947,-1969.51167801,0.00019799,2]
[388399061,1759155055127,-1969.51167801,0.00019799,2]
[388399062,1759155055139,-178.6482269,0.00019813,2]
[388399063,1759155055150,-807.0,0.00019819,2]
[388399064,1759155055160,-168.0,0.00019822,2]
[388399065,1759155055169,-284.149295,0.00019822,2]
[388399066,1759155055179,-175.753879,0.00019824,2]
[388399067,1759155055189,-2598.78448,0.0001983,2]
[388399068,1759155055200,-488.0,0.00019834,2]
[388399069,1759155055210,-2450.0,0.00019834,2]
[388399070,1759155055220,-674.0,0.00019834,2]
[388399071,1759155055231,-500.0,0.00019834,2]
[388399072,1759155055241,-2540.0,0.00019834,2]
[388399073,1759155055251,-500.0,0.00019834,2]
[388399074,1759155055261,-659.0,0.00019834,2]
[388399075,1759155055270,-168.0,0.00019845,2]
[388399076,1759155055281,-1000.0,0.00019866,2]
[388399077,1759155055291,-500.0,0.0001987,2]
[388399078,1759155055301,-1000.0,0.0001987,2]
[388399079,1759155055312,-300.0,0.00019885,2]
[388399080,1759155055323,-87878.18869755,0.000199,2]
[388399081,1759155055333,-151.0,0.000199,2]
[388399082,1759155055343,-151.0,0.000199,2]
[388399083,1759155055352,-151.0,0.000199,2]
[388399084,1759155055363,-151.0,0.000199,2]
[388399085,1759155055372,-151.0,0.000199,2]
[388399086,1759155055382,-151.0,0.000199,2]
[388399087,1759155055391,-284.766161,0.000199,2]
[388399088,1759155055400,-164.854692,0.000199,2]
[388399089,1759155055410,-164.854692,0.000199,2]
[388399090,1759155055419,-631.846708,0.000199,2]
[388399091,1759155055428,-164.854692,0.000199,2]
[388399092,1759155055438,-631.846708,0.000199,2]
[388399093,1759155055448,-164.854692,0.000199,2]
[388399094,1759155055458,-631.846708,0.000199,2]
[388399095,1759155055467,-631.846712,0.000199,2]
[388399096,1759155055476,-700.0,0.000199,7]
[388399097,1759155055485,-151.0,0.000199,2]
[388399098,1759155055495,-216.62685,0.000199,2]
[388399099,1759155055505,-216.62685,0.000199,2]
[388399100,1759155055514,-216.62685,0.000199,2]
[388399101,1759155055524,-216.626854,0.000199,2]
[388399102,1759155055533,-151.0,0.000199,2]
[388399103,1759155055542,-167.551559,0.000199,2]
[388399104,1759155055552,-167.551559,0.000199,2]
[388399105,1759155055562,-167.551559,0.000199,2]
[388399106,1759155055572,-167.551561,0.000199,2]
[388399107,1759155055581,-1302.67765,0.000199,2]
[388399108,1759155055590,-1302.67765,0.000199,2]
[388399109,1759155055599,-1302.67765,0.000199,2]
[388399110,1759155055608,-1302.67765,0.000199,2]
[388399111,1759155055618,-151.0,0.000199,2]
[388399112,1759155055630,-151.0,0.000199,2]
[388399113,1759155055639,-151.0,0.000199,2]
[388399114,1759155055649,-151.0,0.000199,2]
[388399115,1759155055663,-10012.454343,0.000199,2]
[388399116,1759155055673,-10012.454343,0.000199,2]
[388399117,1759155055683,-1560.0,0.000199,2]
[388399118,1759155055693,-10012.454343,0.000199,2]
[388399119,1759155055704,-1560.0,0.000199,2]
[388399120,1759155055713,-10012.454347,0.000199,2]
[388399121,1759155055723,-1560.0,0.000199,2]
[388399122,1759155055733,-151.0,0.000199,2]
[388399123,1759155055744,-1560.0,0.000199,2]
[388399124,1759155055753,-151.0,0.000199,2]
[388399125,1759155055763,-151.0,0.000199,2]
[388399126,1759155055772,-151.0,0.000199,2]
[388399127,1759155055782,-281.989746,0.000199,2]
[388399128,1759155055792,-281.989746,0.000199,2]
[388399129,1759155055802,-281.989746,0.000199,2]
[388399130,1759155055812,-281.989738,0.000199,2]
[388399131,1759155055821,-223.764139,0.000199,2]
[388399132,1759155055831,-446.470289,0.000199,2]
[388399133,1759155055841,-446.470289,0.000199,2]
[388399134,1759155055851,-446.470289,0.000199,2]
[388399135,1759155055860,-160.0,0.0001992,2]
[388399136,1759155055870,-598.55569641,0.0001992,2]
[388399137,1759155055879,-346.92554585,0.0001992,2]
[388399138,1759155055889,-257.91778498,0.0001992,2]
[388399139,1759155055899,-711.97876999,0.00019921,2]
[388399140,1759155055908,-646.65982734,0.00019921,2]
[388399141,1759155055917,-150.0,0.00019932,2]
[388399142,1759155055928,-150.0,0.00019937,2]
[388399143,1759155055938,-112593.12677244,0.0001995,15]
[388399144,1759155055947,-168.0,0.00019957,2]
[388399145,1759155055956,-500.0,0.0001997,2]
[388399146,1759155055966,-1000.0,0.0001997,2]
[388399147,1759155055975,-500.0,0.0001997,2]
[388399148,1759155055985,-1000.0,0.0001997,2]
[388399149,1759155055995,-150.0,0.00019973,2]
[388399150,1759155056004,-150.0,0.00019973,2]
[388399151,1759155056014,-150.0,0.00019976,2]
[388399152,1759155056024,-168.0,0.00019979,2]
[388399153,1759155056033,-3573.8,0.0001999,2]
[388399154,1759155056042,-1000.0,0.00019999,2]
[388399155,1759155056052,-1000.0,0.00019999,2]
[388399156,1759155056062,-500.0,0.0002,2]
[388399157,1759155056071,-814999.85676053,0.0002,2]
[388399158,1759155056082,-54106.0,0.0002,2]
[388399159,1759155056092,-1030.51542859,0.0002,2]
[388399160,1759155056102,-90761.23170952,0.0002,2]
[388399161,1759155056112,-1000.0,0.0002,3]
[388399162,1759155056122,-501.26,0.0002,2]
[388399163,1759155056132,-1000.0,0.0002,2]
[388399164,1759155056142,-1730.255542,0.0002,4]
[388399165,1759155056152,-202.54,0.0002,2]
[388399166,1759155056163,-14431.12665195,0.0002,15]
[388399167,1759155056173,-15939.57781522,0.0002,2]
[388399168,1759155056183,-3950.0,0.0002,2]
[388399169,1759155056193,-1276.57635201,0.0002,2]
[388399170,1759155056202,-7272.6104658,0.0002,2]
[388399171,1759155056212,-150.0,0.0002,2]
[388399172,1759155056222,-3154.27370065,0.0002,5]
[388399173,1759155056232,-162.0,0.0002,2]
[388399174,1759155056242,-889.22,0.0002,20]
[388399175,1759155056252,-789.41917209,0.0002,7]
[388399176,1759155056261,-8732.69056866,0.0002,2]
[388399177,1759155056271,-2000.0,0.0002,2]
[388399178,1759155056281,-180.0,0.0002,2]
[388399179,1759155056291,-2000.0,0.0002,2]
[388399180,1759155056301,-150.0,0.0002,2]
[388399181,1759155056310,-2215.37946929,0.0002,3]
[388399182,1759155056320,-150.0,0.0002,2]
[388399183,1759155056331,-150.0,0.0002,2]
[388399184,1759155056342,-150.0,0.0002,2]
[388399185,1759155056353,-150.0,0.0002,2]
[388399186,1759155056364,-150.0,0.0002,2]
[388399187,1759155056374,-150.0,0.0002,2]
[388399188,1759155056383,-1067.5984,0.0002,2]
[388399189,1759155056392,-150.0,0.0002,2]
[388399190,1759155056402,-150.0,0.0002,2]
[388399191,1759155056412,-8344.61084964,0.0002,2]
[388399192,1759155056422,-150.0,0.0002,2]
[388399193,1759155056432,-153.93,0.0002,2]
[388399194,1759155056443,-150.0,0.0002,2]
[388399195,1759155056452,-150.0,0.0002,2]
[388399196,1759155056462,-385308.37837415,0.0002,2]
[388399197,1759155056471,-2097.78896925,0.0002,3]
[388399198,1759155056481,-63191.0,0.0002,7]
[388399199,1759155056490,-150.0,0.0002,2]
[388399200,1759155056500,-150.0,0.0002,2]
[388399201,1759155056510,-150.0,0.0002,2]
[388399202,1759155056520,-2000.0,0.0002,2]
[388399203,1759155056529,-150.0,0.0002,2]
[388399204,1759155056539,-150.0,0.0002,2]
[388399205,1759155056550,-151.0,0.0002,2]
[388399206,1759155056560,-278.100551,0.0002,2]
[388399207,1759155056570,-151.0,0.0002,2]
[388399208,1759155056585,-151.0,0.0002,2]
[388399209,1759155056596,-500.0,0.0002,2]
[388399210,1759155056607,-475.81,0.0002,2]
[388399211,1759155056616,-475.81,0.0002,2]
[388399212,1759155056626,-169.1,0.0002,2]
[388399213,1759155056637,-379.1076,0.0002,2]
[388399214,1759155056648,-379.1076,0.0002,2]
[388399215,1759155056661,-302.9884,0.0002,2]
[388399216,1759155056671,-302.9884,0.0002,2]
[388399217,1759155056681,-200.271108,0.0002,2]
[388399218,1759155056691,-150.0,0.0002,2]
[388399219,1759155056701,-4000.0,0.0002,4]
[388399220,1759155056711,-9165.44617597,0.0002001,2]
[388399221,1759155056722,-5054.87777035,0.0002001,2]
[388399222,1759155056732,-5772.0,0.0002001,2]
[388399223,1759155056742,-500.0,0.00020013,2]
[388399224,1759155056752,-500.0,0.00020013,2]
[388399225,1759155056763,-5000.0,0.00020046,2]
[388399226,1759155056773,-2664.0,0.00020053,2]
[388399227,1759155056783,-168.0,0.00020066,2]
[388399228,1759155056793,-1972.61,0.0002007,2]
[388399229,1759155056803,-800.0,0.000201,3]
[388399230,1759155056816,-28374.71829233,0.00020102,2]
[388399231,1759155056827,-488.0,0.00020108,2]
[388399232,1759155056837,-2450.0,0.00020108,2]
[388399233,1759155056847,-674.0,0.00020108,2]
[388399234,1759155056857,-500.0,0.00020108,2]
[388399235,1759155056868,-2540.0,0.00020108,2]
[388399236,1759155056877,-500.0,0.00020108,2]
[388399237,1759155056887,-659.0,0.00020108,2]
[388399238,1759155056898,-2000.0,0.00020116,2]
[388399239,1759155056907,-2000.0,0.00020116,2]
[388399240,1759155056917,-1289.87293578,0.00020116,2]
[388399241,1759155056928,-484.73292133,0.00020116,2]
[388399242,1759155056938,-423.94596101,0.00020116,2]
[388399243,1759155056948,-2000.0,0.00020116,2]
[388399244,1759155056958,-2000.0,0.00020116,2]
[388399245,1759155056968,-2000.0,0.00020116,2]
[388399246,1759155056978,-512.50745282,0.00020116,2]
[388399247,1759155056988,-1028.41876253,0.00020116,2]
[388399248,1759155056999,-1828.83905667,0.00020116,2]
[388399249,1759155057009,-2000.0,0.00020116,2]
[388399250,1759155057019,-2000.0,0.00020116,2]
[388399251,1759155057029,-1695.00189329,0.00020116,2]
[388399252,1759155057039,-1254.95584902,0.00020116,2]
[388399253,1759155057050,-2000.0,0.00020116,2]
[388399254,1759155057063,-1898.56195223,0.00020116,2]
[388399255,1759155057075,-2000.0,0.00020116,2]
[388399256,1759155057085,-2000.0,0.00020116,2]
[388399257,1759155057096,-1005.84643545,0.00020116,2]
[388399258,1759155057105,-2000.0,0.00020116,2]
[388399259,1759155057115,-2000.0,0.00020116,2]
[388399260,1759155057125,-763.81926858,0.00020116,2]
[388399261,1759155057135,-2000.0,0.00020116,2]
[388399262,1759155057144,-2518.17,0.00020142,2]
[388399263,1759155057154,-281.0,0.0002015,2]